[Event "Titled Tuesday Blitz June 6 Early 2023"]
[White "Dubreuil, Julien"]
[Black "Vyatkin, Dmitry"]
[WhiteFideId "621285"]
[BlackFideId "4171900"]
[WhiteElo "2276"]
[BlackElo "2279"]
[Result "0-1"]
[Round "7"]
[TimeControl "180+2"]
[Date "2023.06.06"]
[WhiteClock "0:00:27"]
[BlackClock "0:01:00"]
[Board "136"]

1. c4 {[%clk 0:03:00]}  Nf6 {[%clk 0:02:58]} 2. g3 {[%clk 0:03:00]}  g6 {[%clk 0:02:58]} 3. Bg2 {[%clk 0:03:00]}  Bg7 {[%clk 0:02:59]} 4. Nf3 {[%clk 0:03:00]}  O-O {[%clk 0:02:59]} 5. O-O {[%clk 0:02:52]}  d6 {[%clk 0:02:47]} 6. d4 {[%clk 0:02:51]}  Nc6 {[%clk 0:02:46]} 7. Bf4 {[%clk 0:02:26]}  e5 {[%clk 0:02:18]} 8. dxe5 {[%clk 0:02:25]}  Ng4 {[%clk 0:02:15]} 9. Nc3 {[%clk 0:02:22]}  Ngxe5 {[%clk 0:02:14]} 10. Nd2 {[%clk 0:02:05]}  Be6 {[%clk 0:02:11]} 11. Nd5 {[%clk 0:02:01]}  g5 {[%clk 0:02:02]} 12. Be3 {[%clk 0:01:58]}  Ng4 {[%clk 0:02:02]} 13. Ne4 {[%clk 0:01:35]}  Nxe3 {[%clk 0:01:39]} 14. fxe3 {[%clk 0:01:26]}  f5 {[%clk 0:01:33]} 15. Nec3 {[%clk 0:01:21]}  Ne5 {[%clk 0:01:31]} 16. Bh3 {[%clk 0:00:50]}  c6 {[%clk 0:01:21]} 17. e4 {[%clk 0:00:30]}  g4 {[%clk 0:01:00]} 18. exf5 {[%clk 0:00:27]}  Bxf5 {[%clk 0:01:00]} 0-1


[Site "https://www.chess.com"]

[Event "Titled Tuesday Blitz June 6 Early 2023"]
[White "Mazurkiewicz, Michal"]
[Black "mohsengabr2002"]
[WhiteFideId "1124943"]
[WhiteElo "2063"]
[BlackElo "2239"]
[Result "0-1"]
[Round "7"]
[TimeControl "180+2"]
[Date "2023.06.06"]
[WhiteClock "0:00:11"]
[BlackClock "0:01:04"]
[Board "141"]

1. e4 {[%clk 0:02:59]}  f6 {[%clk 0:02:57]} 2. d4 {[%clk 0:02:59]}  g6 {[%clk 0:02:58]} 3. f4 {[%clk 0:02:59]}  e6 {[%clk 0:02:58]} 4. Nf3 {[%clk 0:02:59]}  Nh6 {[%clk 0:02:59]} 5. Bd3 {[%clk 0:02:57]}  f5 {[%clk 0:02:58]} 6. e5 {[%clk 0:02:56]}  Nf7 {[%clk 0:02:58]} 7. O-O {[%clk 0:02:53]}  d5 {[%clk 0:02:58]} 8. exd6 {[%clk 0:02:45]}  cxd6 {[%clk 0:02:58]} 9. c4 {[%clk 0:02:45]}  Bg7 {[%clk 0:02:57]} 10. Nc3 {[%clk 0:02:44]}  O-O {[%clk 0:02:57]} 11. Kh1 {[%clk 0:02:40]}  e5 {[%clk 0:02:57]} 12. dxe5 {[%clk 0:01:50]}  dxe5 {[%clk 0:02:57]} 13. fxe5 {[%clk 0:01:49]}  Nc6 {[%clk 0:02:56]} 14. Nd5 {[%clk 0:01:45]}  Ncxe5 {[%clk 0:02:55]} 15. Be2 {[%clk 0:01:37]}  Be6 {[%clk 0:02:51]} 16. Bf4 {[%clk 0:01:34]}  Nxf3 {[%clk 0:02:50]} 17. Bxf3 {[%clk 0:01:35]}  Rc8 {[%clk 0:02:43]} 18. Re1 {[%clk 0:01:30]}  Re8 {[%clk 0:02:42]} 19. Qb3 {[%clk 0:01:23]}  b6 {[%clk 0:02:34]} 20. Rad1 {[%clk 0:01:21]}  Bxd5 {[%clk 0:02:32]} 21. Bxd5 {[%clk 0:01:17]}  Rxe1+ {[%clk 0:02:31]} 22. Rxe1 {[%clk 0:01:18]}  Qf6 {[%clk 0:02:00]} 23. c5 {[%clk 0:01:03]}  bxc5 {[%clk 0:01:46]} 24. Be5 {[%clk 0:01:03]}  Re8 {[%clk 0:01:23]} 25. Bc3 {[%clk 0:00:30]}  Rxe1+ {[%clk 0:01:21]} 26. Bxe1 {[%clk 0:00:29]}  Qe7 {[%clk 0:01:20]} 27. Bd2 {[%clk 0:00:20]}  Bd4 {[%clk 0:01:17]} 28. g3 {[%clk 0:00:18]}  Kg7 {[%clk 0:01:17]} 29. Bxf7 {[%clk 0:00:12]}  Qxf7 {[%clk 0:01:16]} 30. Bh6+ {[%clk 0:00:12]}  Kf6 {[%clk 0:01:09]} 31. Bg5+ {[%clk 0:00:12]}  Kg7 {[%clk 0:01:08]} 32. Bh6+ {[%clk 0:00:12]}  Kf6 {[%clk 0:01:06]} 33. Qa3 {[%clk 0:00:11]}  Qb7+ {[%clk 0:01:04]} 0-1


[Site "https://www.chess.com"]

[Event "Titled Tuesday Blitz June 6 Early 2023"]
[White "campochess"]
[Black "Barbot, Pierre"]
[BlackFideId "663727"]
[WhiteElo "2163"]
[BlackElo "2431"]
[Result "0-1"]
[Round "7"]
[TimeControl "180+2"]
[Date "2023.06.06"]
[WhiteClock "0:00:18"]
[BlackClock "0:00:40"]
[Board "144"]

1. d4 {[%clk 0:02:51]}  Nf6 {[%clk 0:02:59]} 2. Bg5 {[%clk 0:02:49]}  d5 {[%clk 0:02:56]} 3. Nd2 {[%clk 0:02:48]}  g6 {[%clk 0:02:56]} 4. Bxf6 {[%clk 0:02:47]}  exf6 {[%clk 0:02:57]} 5. e3 {[%clk 0:02:46]}  Bg7 {[%clk 0:02:56]} 6. Bd3 {[%clk 0:02:45]}  O-O {[%clk 0:02:56]} 7. Ne2 {[%clk 0:02:45]}  f5 {[%clk 0:02:51]} 8. O-O {[%clk 0:02:44]}  Nd7 {[%clk 0:02:51]} 9. c4 {[%clk 0:02:43]}  dxc4 {[%clk 0:02:47]} 10. Nxc4 {[%clk 0:02:42]}  c5 {[%clk 0:02:47]} 11. Rc1 {[%clk 0:02:29]}  cxd4 {[%clk 0:02:46]} 12. Nxd4 {[%clk 0:02:27]}  Nc5 {[%clk 0:02:45]} 13. Bb1 {[%clk 0:02:25]}  Ne4 {[%clk 0:02:43]} 14. Nd2 {[%clk 0:02:20]}  Qd5 {[%clk 0:02:33]} 15. Nxe4 {[%clk 0:02:19]}  fxe4 {[%clk 0:02:34]} 16. Qb3 {[%clk 0:02:11]}  Qe5 {[%clk 0:02:27]} 17. Qb5 {[%clk 0:01:56]}  Qxb5 {[%clk 0:02:19]} 18. Nxb5 {[%clk 0:01:55]}  Bxb2 {[%clk 0:02:19]} 19. Rc4 {[%clk 0:01:53]}  f5 {[%clk 0:02:15]} 20. a4 {[%clk 0:01:45]}  Be6 {[%clk 0:02:02]} 21. Rc2 {[%clk 0:01:44]}  Be5 {[%clk 0:02:00]} 22. Nc7 {[%clk 0:01:39]}  Bxc7 {[%clk 0:01:44]} 23. Rxc7 {[%clk 0:01:37]}  Rf7 {[%clk 0:01:38]} 24. Rc3 {[%clk 0:01:30]}  Rd7 {[%clk 0:01:34]} 25. h4 {[%clk 0:01:28]}  Rad8 {[%clk 0:01:34]} 26. Kh2 {[%clk 0:01:26]}  Kf7 {[%clk 0:01:30]} 27. Rfc1 {[%clk 0:01:21]}  Kf6 {[%clk 0:01:29]} 28. Bc2 {[%clk 0:01:20]}  Bd5 {[%clk 0:01:25]} 29. Bd1 {[%clk 0:01:18]}  Bc6 {[%clk 0:01:24]} 30. a5 {[%clk 0:01:16]}  Rxd1 {[%clk 0:01:24]} 31. a6 {[%clk 0:01:11]}  Rxc1 {[%clk 0:01:23]} 32. Rxc1 {[%clk 0:01:11]}  Rd7 {[%clk 0:01:14]} 33. Kg3 {[%clk 0:01:08]}  Bd5 {[%clk 0:01:12]} 34. Rc5 {[%clk 0:01:06]}  bxa6 {[%clk 0:01:11]} 35. Kf4 {[%clk 0:01:04]}  Ke6 {[%clk 0:01:07]} 36. Kg5 {[%clk 0:00:59]}  Kd6 {[%clk 0:01:05]} 37. Ra5 {[%clk 0:00:59]}  Bb7 {[%clk 0:01:02]} 38. Kf6 {[%clk 0:00:57]}  Kc6 {[%clk 0:01:00]} 39. Re5 {[%clk 0:00:53]}  Kb6 {[%clk 0:00:58]} 40. Ke6 {[%clk 0:00:50]}  Rc7 {[%clk 0:00:56]} 41. h5 {[%clk 0:00:49]}  a5 {[%clk 0:00:54]} 42. Kd6 {[%clk 0:00:45]}  a4 {[%clk 0:00:49]} 43. g4 {[%clk 0:00:23]}  Rc6+ {[%clk 0:00:42]} 44. Kd7 {[%clk 0:00:22]}  a3 {[%clk 0:00:39]} 45. hxg6 {[%clk 0:00:18]}  hxg6 {[%clk 0:00:39]} 46. gxf5 {[%clk 0:00:18]}  gxf5 {[%clk 0:00:40]} 0-1


[Site "https://www.chess.com"]

[Event "Titled Tuesday Blitz June 6 Early 2023"]
[White "Mohammed, Zozek Salah Mohammed"]
[Black "Lakshmi C"]
[WhiteFideId "4803361"]
[BlackFideId "25035347"]
[WhiteElo "2211"]
[BlackElo "1942"]
[Result "0-1"]
[Round "7"]
[TimeControl "180+2"]
[Date "2023.06.06"]
[WhiteClock "0:00:15"]
[BlackClock "0:00:01"]
[Board "147"]

1. d4 {[%clk 0:02:50]}  Nf6 {[%clk 0:02:51]} 2. Nf3 {[%clk 0:02:50]}  g6 {[%clk 0:02:43]} 3. g3 {[%clk 0:02:50]}  Bg7 {[%clk 0:02:23]} 4. Bg2 {[%clk 0:02:51]}  O-O {[%clk 0:02:22]} 5. O-O {[%clk 0:02:52]}  d6 {[%clk 0:02:22]} 6. c4 {[%clk 0:02:50]}  Nbd7 {[%clk 0:02:22]} 7. Nc3 {[%clk 0:02:51]}  e5 {[%clk 0:02:22]} 8. e4 {[%clk 0:02:45]}  c6 {[%clk 0:02:22]} 9. Bg5 {[%clk 0:02:42]}  Qb6 {[%clk 0:02:18]} 10. dxe5 {[%clk 0:02:31]}  dxe5 {[%clk 0:02:12]} 11. b3 {[%clk 0:02:30]}  Re8 {[%clk 0:01:55]} 12. h3 {[%clk 0:02:27]}  Nc5 {[%clk 0:01:50]} 13. Be3 {[%clk 0:02:27]}  Qb4 {[%clk 0:01:42]} 14. Qc2 {[%clk 0:02:12]}  Ne6 {[%clk 0:01:30]} 15. a3 {[%clk 0:02:09]}  Qd6 {[%clk 0:01:29]} 16. Rfd1 {[%clk 0:02:05]}  Qc7 {[%clk 0:01:28]} 17. b4 {[%clk 0:01:59]}  b6 {[%clk 0:01:23]} 18. Rac1 {[%clk 0:01:50]}  Ba6 {[%clk 0:01:15]} 19. Qb3 {[%clk 0:01:37]}  Rad8 {[%clk 0:01:09]} 20. Nd5 {[%clk 0:01:32]}  Qb8 {[%clk 0:00:41]} 21. Nxf6+ {[%clk 0:01:28]}  Bxf6 {[%clk 0:00:40]} 22. a4 {[%clk 0:01:14]}  c5 {[%clk 0:00:30]} 23. bxc5 {[%clk 0:01:11]}  bxc5 {[%clk 0:00:23]} 24. Qxb8 {[%clk 0:01:09]}  Rxb8 {[%clk 0:00:22]} 25. Rd7 {[%clk 0:01:02]}  Bb7 {[%clk 0:00:18]} 26. Nd2 {[%clk 0:00:56]}  Red8 {[%clk 0:00:15]} 27. Rxd8+ {[%clk 0:00:56]}  Rxd8 {[%clk 0:00:15]} 28. Rb1 {[%clk 0:00:56]}  Bc6 {[%clk 0:00:14]} 29. a5 {[%clk 0:00:55]}  Nd4 {[%clk 0:00:14]} 30. Kf1 {[%clk 0:00:51]}  Be7 {[%clk 0:00:07]} 31. f4 {[%clk 0:00:47]}  f6 {[%clk 0:00:06]} 32. Kf2 {[%clk 0:00:40]}  Nc2 {[%clk 0:00:06]} 33. Nf1 {[%clk 0:00:38]}  Nxe3 {[%clk 0:00:06]} 34. Nxe3 {[%clk 0:00:39]}  Rd2+ {[%clk 0:00:06]} 35. Kf3 {[%clk 0:00:36]}  f5 {[%clk 0:00:05]} 36. Nd5 {[%clk 0:00:23]}  Bxd5 {[%clk 0:00:01]} 37. cxd5 {[%clk 0:00:14]}  fxe4+ {[%clk 0:00:01]} 38. Kxe4 {[%clk 0:00:15]}  Rxg2 {[%clk 0:00:01]} 39. Kxe5 {[%clk 0:00:15]}  Re2# {[%clk 0:00:01]} 0-1


[Site "https://www.chess.com"]

[Event "Titled Tuesday Blitz June 6 Early 2023"]
[White "Zallio, Luciano de Souza"]
[Black "Fajdetic, Hrvoje"]
[WhiteFideId "2109700"]
[BlackFideId "14501945"]
[WhiteElo "2057"]
[BlackElo "2185"]
[Result "0-1"]
[Round "7"]
[TimeControl "180+2"]
[Date "2023.06.06"]
[WhiteClock "0:00:21"]
[BlackClock "0:00:12"]
[Board "148"]

1. e4 {[%clk 0:02:25]}  c5 {[%clk 0:02:57]} 2. Nf3 {[%clk 0:02:24]}  a6 {[%clk 0:02:57]} 3. d4 {[%clk 0:02:24]}  cxd4 {[%clk 0:02:58]} 4. Nxd4 {[%clk 0:02:25]}  Nf6 {[%clk 0:02:59]} 5. Nc3 {[%clk 0:02:25]}  e5 {[%clk 0:02:59]} 6. Nf3 {[%clk 0:02:21]}  Nc6 {[%clk 0:02:56]} 7. a4 {[%clk 0:02:18]}  Bb4 {[%clk 0:02:54]} 8. Qd3 {[%clk 0:02:10]}  d5 {[%clk 0:02:51]} 9. exd5 {[%clk 0:01:50]}  Qxd5 {[%clk 0:02:18]} 10. Qxd5 {[%clk 0:01:46]}  Nxd5 {[%clk 0:02:18]} 11. Bd2 {[%clk 0:01:47]}  Nxc3 {[%clk 0:02:11]} 12. bxc3 {[%clk 0:01:47]}  Bc5 {[%clk 0:01:58]} 13. h3 {[%clk 0:01:34]}  O-O {[%clk 0:01:54]} 14. a5 {[%clk 0:01:32]}  e4 {[%clk 0:01:41]} 15. Ng1 {[%clk 0:01:21]}  Re8 {[%clk 0:01:14]} 16. Be3 {[%clk 0:01:17]}  Bxe3 {[%clk 0:01:09]} 17. fxe3 {[%clk 0:01:18]}  Re5 {[%clk 0:01:08]} 18. Ne2 {[%clk 0:01:05]}  Rxa5 {[%clk 0:00:57]} 19. Rxa5 {[%clk 0:01:03]}  Nxa5 {[%clk 0:00:58]} 20. Nd4 {[%clk 0:01:02]}  Nc6 {[%clk 0:00:52]} 21. Nxc6 {[%clk 0:01:01]}  bxc6 {[%clk 0:00:53]} 22. Bc4 {[%clk 0:00:59]}  a5 {[%clk 0:00:47]} 23. Kd2 {[%clk 0:00:58]}  Ba6 {[%clk 0:00:47]} 24. Bxa6 {[%clk 0:00:53]}  Rxa6 {[%clk 0:00:48]} 25. Ra1 {[%clk 0:00:53]}  a4 {[%clk 0:00:31]} 26. c4 {[%clk 0:00:53]}  c5 {[%clk 0:00:31]} 27. Kc3 {[%clk 0:00:52]}  h5 {[%clk 0:00:25]} 28. Kb2 {[%clk 0:00:51]}  Rg6 {[%clk 0:00:19]} 29. Rg1 {[%clk 0:00:46]}  Rg3 {[%clk 0:00:18]} 30. Ka3 {[%clk 0:00:46]}  Rxe3+ {[%clk 0:00:16]} 31. Kxa4 {[%clk 0:00:47]}  Rc3 {[%clk 0:00:16]} 32. Kb5 {[%clk 0:00:47]}  Rxc2 {[%clk 0:00:16]} 33. Kxc5 {[%clk 0:00:48]}  f5 {[%clk 0:00:14]} 34. Kd5 {[%clk 0:00:46]}  Kf7 {[%clk 0:00:14]} 35. c5 {[%clk 0:00:45]}  Kf6 {[%clk 0:00:14]} 36. c6 {[%clk 0:00:46]}  g5 {[%clk 0:00:14]} 37. Kd6 {[%clk 0:00:45]}  Rd2+ {[%clk 0:00:13]} 38. Kc5 {[%clk 0:00:42]}  Ke5 {[%clk 0:00:13]} 39. c7 {[%clk 0:00:42]}  Rc2+ {[%clk 0:00:13]} 40. Kb6 {[%clk 0:00:43]}  f4 {[%clk 0:00:13]} 41. Kb7 {[%clk 0:00:43]}  e3 {[%clk 0:00:12]} 42. c8=Q {[%clk 0:00:43]}  Rxc8 {[%clk 0:00:12]} 43. Kxc8 {[%clk 0:00:43]}  g4 {[%clk 0:00:11]} 44. Kc7 {[%clk 0:00:42]}  f3 {[%clk 0:00:11]} 45. gxf3 {[%clk 0:00:37]}  gxf3 {[%clk 0:00:12]} 46. Rg5+ {[%clk 0:00:37]}  Kf4 {[%clk 0:00:12]} 47. Rxh5 {[%clk 0:00:35]}  e2 {[%clk 0:00:13]} 48. Rh4+ {[%clk 0:00:34]}  Ke3 {[%clk 0:00:13]} 49. Rh8 {[%clk 0:00:33]}  f2 {[%clk 0:00:12]} 50. Re8+ {[%clk 0:00:33]}  Kd2 {[%clk 0:00:13]} 51. Rd8+ {[%clk 0:00:28]}  Kc2 {[%clk 0:00:13]} 52. h4 {[%clk 0:00:22]}  e1=Q {[%clk 0:00:13]} 53. Rd6 {[%clk 0:00:21]}  Qe5 {[%clk 0:00:12]} 0-1


[Site "https://www.chess.com"]

[Event "Titled Tuesday Blitz June 6 Early 2023"]
[White "Sargissyan, Sargis"]
[Black "Aung Thant Zin"]
[WhiteFideId "13303210"]
[BlackFideId "13000063"]
[WhiteElo "2109"]
[BlackElo "2278"]
[Result "1-0"]
[Round "7"]
[TimeControl "180+2"]
[Date "2023.06.06"]
[WhiteClock "0:02:48"]
[BlackClock "0:02:03"]
[Board "149"]

1. e4 {[%clk 0:03:00]}  c5 {[%clk 0:02:55]} 2. Nc3 {[%clk 0:03:00]}  Nc6 {[%clk 0:02:56]} 3. Bb5 {[%clk 0:03:00]}  Nd4 {[%clk 0:02:51]} 4. Bc4 {[%clk 0:03:00]}  e6 {[%clk 0:02:51]} 5. Nge2 {[%clk 0:03:01]}  d6 {[%clk 0:02:48]} 6. Nxd4 {[%clk 0:03:01]}  cxd4 {[%clk 0:02:49]} 7. Ne2 {[%clk 0:03:02]}  e5 {[%clk 0:02:40]} 8. d3 {[%clk 0:03:02]}  Be6 {[%clk 0:02:39]} 9. Bxe6 {[%clk 0:03:00]}  fxe6 {[%clk 0:02:38]} 10. O-O {[%clk 0:03:01]}  Nf6 {[%clk 0:02:38]} 11. f4 {[%clk 0:03:02]}  exf4 {[%clk 0:02:38]} 12. Nxf4 {[%clk 0:03:02]}  Qd7 {[%clk 0:02:34]} 13. Nh5 {[%clk 0:03:00]}  Be7 {[%clk 0:02:33]} 14. Nxg7+ {[%clk 0:03:00]}  Kd8 {[%clk 0:02:34]} 15. Bg5 {[%clk 0:02:53]}  Rf8 {[%clk 0:02:27]} 16. Nh5 {[%clk 0:02:50]}  Ng8 {[%clk 0:02:03]} 17. Rxf8+ {[%clk 0:02:48]} 1-0


[Site "https://www.chess.com"]

[Event "Titled Tuesday Blitz June 6 Early 2023"]
[White "Toczek, Grzegorz"]
[Black "Jiganchine, Roman"]
[WhiteFideId "1106457"]
[BlackFideId "2603667"]
[WhiteElo "2093"]
[BlackElo "2292"]
[Result "0-1"]
[Round "7"]
[TimeControl "180+2"]
[Date "2023.06.06"]
[WhiteClock "0:00:11"]
[BlackClock "0:00:15"]
[Board "151"]

1. c4 {[%clk 0:03:00]}  c6 {[%clk 0:02:58]} 2. e3 {[%clk 0:02:55]}  d5 {[%clk 0:02:58]} 3. Nf3 {[%clk 0:02:55]}  Nf6 {[%clk 0:02:58]} 4. b3 {[%clk 0:02:56]}  Bf5 {[%clk 0:02:57]} 5. Bb2 {[%clk 0:02:56]}  e6 {[%clk 0:02:57]} 6. Nc3 {[%clk 0:02:55]}  h6 {[%clk 0:02:57]} 7. d3 {[%clk 0:02:55]}  Bh7 {[%clk 0:02:55]} 8. Be2 {[%clk 0:02:56]}  Nbd7 {[%clk 0:02:55]} 9. O-O {[%clk 0:02:56]}  a5 {[%clk 0:02:55]} 10. Rc1 {[%clk 0:02:56]}  Be7 {[%clk 0:02:52]} 11. Nd4 {[%clk 0:02:43]}  O-O {[%clk 0:02:46]} 12. cxd5 {[%clk 0:02:42]}  cxd5 {[%clk 0:02:35]} 13. Ndb5 {[%clk 0:02:38]}  Nb8 {[%clk 0:02:26]} 14. Qd2 {[%clk 0:02:37]}  Nc6 {[%clk 0:02:26]} 15. a3 {[%clk 0:02:24]}  Qb6 {[%clk 0:02:21]} 16. d4 {[%clk 0:02:21]}  Rfc8 {[%clk 0:02:20]} 17. Na4 {[%clk 0:02:21]}  Qd8 {[%clk 0:02:19]} 18. Nc5 {[%clk 0:02:19]}  Ne4 {[%clk 0:02:15]} 19. Nxe4 {[%clk 0:02:15]}  Bxe4 {[%clk 0:02:14]} 20. Bd3 {[%clk 0:02:12]}  Bxd3 {[%clk 0:02:04]} 21. Qxd3 {[%clk 0:02:13]}  Qb6 {[%clk 0:02:03]} 22. Rc2 {[%clk 0:02:06]}  a4 {[%clk 0:01:55]} 23. b4 {[%clk 0:02:03]}  Na7 {[%clk 0:01:37]} 24. Nxa7 {[%clk 0:02:00]}  Qxa7 {[%clk 0:01:33]} 25. Rfc1 {[%clk 0:02:00]}  Rxc2 {[%clk 0:01:28]} 26. Qxc2 {[%clk 0:02:01]}  Qb6 {[%clk 0:01:28]} 27. Qc7 {[%clk 0:01:59]}  Bd8 {[%clk 0:01:20]} 28. Qd7 {[%clk 0:02:00]}  Bf6 {[%clk 0:00:56]} 29. Rc7 {[%clk 0:01:59]}  Qa6 {[%clk 0:00:49]} 30. Qxf7+ {[%clk 0:01:56]}  Kh8 {[%clk 0:00:49]} 31. h3 {[%clk 0:01:30]}  Qe2 {[%clk 0:00:46]} 32. Bc1 {[%clk 0:01:27]}  Qe1+ {[%clk 0:00:45]} 33. Kh2 {[%clk 0:01:27]}  Qxf2 {[%clk 0:00:43]} 34. Qxe6 {[%clk 0:01:27]}  Rf8 {[%clk 0:00:34]} 35. Qxd5 {[%clk 0:01:16]}  Bh4 {[%clk 0:00:28]} 36. Qe5 {[%clk 0:01:13]}  Rf6 {[%clk 0:00:20]} 37. e4 {[%clk 0:01:08]}  Rg6 {[%clk 0:00:17]} 38. Qe8+ {[%clk 0:00:33]}  Kh7 {[%clk 0:00:16]} 39. Rxg7+ {[%clk 0:00:15]}  Rxg7 {[%clk 0:00:16]} 40. Bf4 {[%clk 0:00:11]}  Qxg2# {[%clk 0:00:15]} 0-1


[Site "https://www.chess.com"]

[Event "Titled Tuesday Blitz June 6 Early 2023"]
[White "Palacio,Igor Da Paz"]
[Black "Llanos, Guillermo"]
[WhiteFideId "2121140"]
[BlackFideId "100358"]
[WhiteElo "2126"]
[BlackElo "2210"]
[Result "0-1"]
[Round "7"]
[TimeControl "180+2"]
[Date "2023.06.06"]
[WhiteClock "0:00:03"]
[BlackClock "0:00:32"]
[Board "152"]

1. e4 {[%clk 0:03:00]}  Nf6 {[%clk 0:02:56]} 2. Nc3 {[%clk 0:03:00]}  d5 {[%clk 0:02:56]} 3. e5 {[%clk 0:02:58]}  Nfd7 {[%clk 0:02:56]} 4. d4 {[%clk 0:02:56]}  c5 {[%clk 0:02:56]} 5. f4 {[%clk 0:02:50]}  cxd4 {[%clk 0:02:54]} 6. Qxd4 {[%clk 0:02:48]}  e6 {[%clk 0:02:55]} 7. Nf3 {[%clk 0:02:43]}  Nc6 {[%clk 0:02:54]} 8. Qd1 {[%clk 0:02:43]}  Bc5 {[%clk 0:02:50]} 9. Bd3 {[%clk 0:02:40]}  Qb6 {[%clk 0:02:48]} 10. Qe2 {[%clk 0:02:40]}  Nd4 {[%clk 0:02:41]} 11. Nxd4 {[%clk 0:02:39]}  Bxd4 {[%clk 0:02:42]} 12. Bd2 {[%clk 0:02:35]}  a6 {[%clk 0:02:34]} 13. Na4 {[%clk 0:02:14]}  Qd8 {[%clk 0:02:25]} 14. c3 {[%clk 0:01:28]}  Ba7 {[%clk 0:02:23]} 15. b4 {[%clk 0:01:23]}  b5 {[%clk 0:02:22]} 16. Nb2 {[%clk 0:01:21]}  d4 {[%clk 0:02:19]} 17. cxd4 {[%clk 0:01:13]}  Bxd4 {[%clk 0:02:18]} 18. O-O-O {[%clk 0:01:09]}  Bb7 {[%clk 0:02:04]} 19. Kb1 {[%clk 0:01:06]}  Nb6 {[%clk 0:01:59]} 20. Be3 {[%clk 0:00:58]}  Bxe3 {[%clk 0:01:58]} 21. Bxb5+ {[%clk 0:00:57]}  axb5 {[%clk 0:01:46]} 22. Rxd8+ {[%clk 0:00:56]}  Rxd8 {[%clk 0:01:45]} 23. Qxe3 {[%clk 0:00:57]}  Nd5 {[%clk 0:01:45]} 24. Qc5 {[%clk 0:00:57]}  Rc8 {[%clk 0:01:39]} 25. Qxb5+ {[%clk 0:00:54]}  Bc6 {[%clk 0:01:40]} 26. Qc5 {[%clk 0:00:31]}  Bd7 {[%clk 0:01:39]} 27. Qd4 {[%clk 0:00:24]}  O-O {[%clk 0:01:35]} 28. Rc1 {[%clk 0:00:22]}  Rxc1+ {[%clk 0:01:30]} 29. Kxc1 {[%clk 0:00:21]}  Rc8+ {[%clk 0:01:30]} 30. Kd2 {[%clk 0:00:21]}  Ra8 {[%clk 0:01:21]} 31. Qc4 {[%clk 0:00:16]}  g6 {[%clk 0:01:17]} 32. b5 {[%clk 0:00:11]}  Be8 {[%clk 0:01:02]} 33. a4 {[%clk 0:00:11]}  Nb6 {[%clk 0:01:01]} 34. Qb4 {[%clk 0:00:11]}  Rd8+ {[%clk 0:01:00]} 35. Ke2 {[%clk 0:00:10]}  Nd5 {[%clk 0:00:57]} 36. Qd4 {[%clk 0:00:09]}  Rc8 {[%clk 0:00:57]} 37. Nd3 {[%clk 0:00:07]}  Rc2+ {[%clk 0:00:54]} 38. Kf3 {[%clk 0:00:06]}  Rc3 {[%clk 0:00:39]} 39. Ke4 {[%clk 0:00:06]}  Ra3 {[%clk 0:00:36]} 40. Nc5 {[%clk 0:00:05]}  Nc3+ {[%clk 0:00:34]} 41. Kd3 {[%clk 0:00:04]}  Nxb5+ {[%clk 0:00:33]} 42. Kc4 {[%clk 0:00:04]}  Nxd4 {[%clk 0:00:32]} 43. Kxd4 {[%clk 0:00:03]}  Bxa4 {[%clk 0:00:32]} 0-1


[Site "https://www.chess.com"]

[Event "Titled Tuesday Blitz June 6 Early 2023"]
[White "KSho99"]
[Black "Vivas Zamora, Fabian Ernesto"]
[BlackFideId "3902480"]
[WhiteElo "2197"]
[BlackElo "2244"]
[Result "0-1"]
[Round "7"]
[TimeControl "180+2"]
[Date "2023.06.06"]
[WhiteClock "0:01:37"]
[BlackClock "0:01:15"]
[Board "158"]

1. d4 {[%clk 0:03:00]}  Nf6 {[%clk 0:02:52]} 2. Nc3 {[%clk 0:03:01]}  d5 {[%clk 0:02:48]} 3. Bf4 {[%clk 0:03:01]}  g6 {[%clk 0:02:48]} 4. e3 {[%clk 0:03:00]}  Bg7 {[%clk 0:02:48]} 5. h4 {[%clk 0:02:58]}  h5 {[%clk 0:02:47]} 6. Nf3 {[%clk 0:02:53]}  O-O {[%clk 0:02:43]} 7. Ne5 {[%clk 0:02:51]}  c5 {[%clk 0:02:35]} 8. Be2 {[%clk 0:02:30]}  cxd4 {[%clk 0:02:28]} 9. exd4 {[%clk 0:02:29]}  Nc6 {[%clk 0:02:29]} 10. Qd2 {[%clk 0:02:15]}  Bf5 {[%clk 0:02:06]} 11. f3 {[%clk 0:02:10]}  Rc8 {[%clk 0:01:41]} 12. g4 {[%clk 0:01:55]}  hxg4 {[%clk 0:01:40]} 13. fxg4 {[%clk 0:01:55]}  Ne4 {[%clk 0:01:30]} 14. Nxe4 {[%clk 0:01:48]}  Bxe4 {[%clk 0:01:30]} 15. Rh3 {[%clk 0:01:46]}  Nxe5 {[%clk 0:01:25]} 16. Bxe5 {[%clk 0:01:40]}  Rxc2 {[%clk 0:01:26]} 17. Qf4 {[%clk 0:01:37]}  f6 {[%clk 0:01:15]} 0-1


[Site "https://www.chess.com"]